[Event "Live Chess"]
[Site "Chess.com"]
[Date "2024.06.02"]
[Round "-"]
[White "Bradfield133"]
[Black "WeakOldFinished"]
[Result "0-1"]
[WhiteElo "1859"]
[BlackElo "2183"]
[TimeControl "300"]
[EndTime "3:34:24 PDT"]
[Termination "WeakOldFinished won by checkmate"]

1. c4 {[%clk 0:04:57.3]} 1... e5 {[%clk 0:04:58]} 2. g3 {[%clk 0:04:54.8]} 2...
Nf6 {[%clk 0:04:56.9]} 3. Bg2 {[%clk 0:04:53.8]} 3... d5 {[%clk 0:04:55.8]} 4.
cxd5 {[%clk 0:04:52.4]} 4... Nxd5 {[%clk 0:04:55.7]} 5. Nf3 {[%clk 0:04:51.4]}
5... Nc6 {[%clk 0:04:53.6]} 6. O-O {[%clk 0:04:48.8]} 6... Be7 {[%clk
0:04:52.5]} 7. d4 {[%clk 0:04:47.8]} 7... e4 {[%clk 0:04:50.8]} 8. Ne5 {[%clk
0:04:44.7]} 8... f5 {[%clk 0:04:48.1]} 9. Nxc6 {[%clk 0:04:27.5]} 9... bxc6
{[%clk 0:04:48]} 10. Nc3 {[%clk 0:04:25.7]} 10... O-O {[%clk 0:04:45]} 11. f3
{[%clk 0:04:18.2]} 11... exf3 {[%clk 0:04:31.9]} 12. Bxf3 {[%clk 0:04:15.6]}
12... Be6 {[%clk 0:04:30.5]} 13. Qa4 {[%clk 0:03:53.1]} 13... Qd7 {[%clk
0:04:23.3]} 14. Nxd5 {[%clk 0:03:30.1]} 14... Bxd5 {[%clk 0:04:23.2]} 15. Bxd5+
{[%clk 0:03:28.1]} 15... Qxd5 {[%clk 0:04:23.1]} 16. e3 {[%clk 0:03:18]} 16...
c5 {[%clk 0:04:18.4]} 17. Qb3 {[%clk 0:03:02]} 17... c4 {[%clk 0:04:10.3]} 18.
Qa4 {[%clk 0:02:58.2]} 18... c5 {[%clk 0:04:06.7]} 19. Qd1 {[%clk 0:02:40.4]}
19... Rad8 {[%clk 0:04:01.9]} 20. Qe2 {[%clk 0:02:22.5]} 20... cxd4 {[%clk
0:03:57.7]} 21. exd4 {[%clk 0:02:21.1]} 21... Bf6 {[%clk 0:03:55.9]} 22. Be3
{[%clk 0:02:01.6]} 22... Rfe8 {[%clk 0:03:54.7]} 23. Rf3 {[%clk 0:01:11.7]}
23... Rxe3 {[%clk 0:03:32.8]} 24. Rxe3 {[%clk 0:01:07.5]} 24... Bxd4 {[%clk
0:03:31.8]} 25. Re1 {[%clk 0:00:58.3]} 25... Re8 {[%clk 0:03:30.7]} 26. Rd1
{[%clk 0:00:39.1]} 26... Bxe3+ {[%clk 0:03:27.7]} 27. Kf1 {[%clk 0:00:30.1]}
27... Qh1# {[%clk 0:03:25.3]} 0-1

[Event "Live Chess"]
[Site "Chess.com"]
[Date "2024.06.02"]
[Round "-"]
[White "juniortay"]
[Black "silunn"]
[Result "1-0"]
[WhiteElo "2372"]
[BlackElo "2179"]
[TimeControl "300"]
[EndTime "3:34:30 PDT"]
[Termination "juniortay won by resignation"]

1. e4 {[%clk 0:04:57.5]} 1... e6 {[%clk 0:04:59.9]} 2. Nf3 {[%clk 0:04:56.4]}
2... d5 {[%clk 0:04:59.5]} 3. Nc3 {[%clk 0:04:56.1]} 3... c5 {[%clk 0:04:58.3]}
4. exd5 {[%clk 0:04:55]} 4... exd5 {[%clk 0:04:57]} 5. Bb5+ {[%clk 0:04:54.6]}
5... Bd7 {[%clk 0:04:53.9]} 6. Qe2+ {[%clk 0:04:53.4]} 6... Be7 {[%clk
0:04:40.3]} 7. Nxd5 {[%clk 0:04:52.1]} 7... Nf6 {[%clk 0:04:33.1]} 8. Nxf6+
{[%clk 0:04:47.7]} 8... gxf6 {[%clk 0:04:30]} 9. O-O {[%clk 0:04:46.7]} 9... O-O
{[%clk 0:04:24.8]} 10. d4 {[%clk 0:04:43.6]} 10... Bg4 {[%clk 0:04:13.5]} 11.
Bh6 {[%clk 0:04:41]} 11... Re8 {[%clk 0:04:11.8]} 12. Bxe8 {[%clk 0:04:39.2]}
12... Qxe8 {[%clk 0:04:08.3]} 13. Rfe1 {[%clk 0:04:37.6]} 13... Nc6 {[%clk
0:04:06.4]} 14. d5 {[%clk 0:04:30.8]} 14... Ne5 {[%clk 0:04:05.7]} 15. Qe3
{[%clk 0:04:23.7]} 15... Bd6 {[%clk 0:03:44.6]} 16. Nxe5 {[%clk 0:04:22]} 16...
Bxe5 {[%clk 0:03:43.8]} 17. c3 {[%clk 0:04:19.9]} 17... Qd7 {[%clk 0:03:36.7]}
18. f4 {[%clk 0:04:15.4]} 18... Bd6 {[%clk 0:03:35.7]} 19. Qg3 {[%clk
0:04:00.2]} 1-0

[Event "Live Chess"]
[Site "Chess.com"]
[Date "2024.06.02"]
[Round "-"]
[White "FlyingChessKestrel13"]
[Black "MaximKovalenko83"]
[Result "0-1"]
[WhiteElo "2069"]
[BlackElo "2180"]
[TimeControl "300"]
[EndTime "3:34:31 PDT"]
[Termination "MaximKovalenko83 won by resignation"]

1. Nf3 {[%clk 0:04:56.8]} 1... d5 {[%clk 0:04:58.5]} 2. d4 {[%clk 0:04:55.8]}
2... c5 {[%clk 0:04:57.8]} 3. c3 {[%clk 0:04:54]} 3... Nc6 {[%clk 0:04:57.7]} 4.
Bf4 {[%clk 0:04:50.9]} 4... Nf6 {[%clk 0:04:56]} 5. e3 {[%clk 0:04:49.4]} 5...
Bg4 {[%clk 0:04:54]} 6. Be2 {[%clk 0:04:48.2]} 6... e6 {[%clk 0:04:52.7]} 7. O-O
{[%clk 0:04:46.6]} 7... Bd6 {[%clk 0:04:51.2]} 8. Bxd6 {[%clk 0:04:43.3]} 8...
Qxd6 {[%clk 0:04:51.1]} 9. Nbd2 {[%clk 0:04:42.1]} 9... O-O {[%clk 0:04:49.5]}
10. h3 {[%clk 0:04:40.7]} 10... Bh5 {[%clk 0:04:47.9]} 11. Ne1 {[%clk
0:04:37.8]} 11... Bg6 {[%clk 0:04:46.2]} 12. Bd3 {[%clk 0:04:35.4]} 12... Bxd3
{[%clk 0:04:41.7]} 13. Nxd3 {[%clk 0:04:34.3]} 13... c4 {[%clk 0:04:40.8]} 14.
Nf4 {[%clk 0:04:31.5]} 14... b5 {[%clk 0:04:37.9]} 15. a4 {[%clk 0:04:29.8]}
15... b4 {[%clk 0:04:36.5]} 16. f3 {[%clk 0:04:21.7]} 16... a5 {[%clk
0:04:34.3]} 17. Ne2 {[%clk 0:04:20]} 17... Rab8 {[%clk 0:04:30.2]} 18. e4 {[%clk
0:04:18.9]} 18... e5 {[%clk 0:04:20.7]} 19. dxe5 {[%clk 0:04:14.2]} 19... Nxe5
{[%clk 0:04:18]} 20. f4 {[%clk 0:04:12.6]} 20... Nd3 {[%clk 0:04:15.4]} 21. e5
{[%clk 0:04:11.5]} 21... Qb6+ {[%clk 0:04:14.1]} 22. Kh2 {[%clk 0:04:09.5]}
22... Ne4 {[%clk 0:04:03.8]} 23. Nxe4 {[%clk 0:04:07.5]} 23... dxe4 {[%clk
0:04:03.7]} 24. Qc2 {[%clk 0:04:01.1]} 24... b3 {[%clk 0:03:58.6]} 25. Qb1
{[%clk 0:03:58.2]} 25... Qe3 {[%clk 0:03:55.3]} 26. Ng3 {[%clk 0:03:44.4]} 26...
Rbd8 {[%clk 0:03:47.6]} 27. f5 {[%clk 0:03:34.9]} 27... Nxe5 {[%clk 0:03:33.2]}
28. Qxe4 {[%clk 0:03:32]} 28... Qxe4 {[%clk 0:03:30.6]} 29. Nxe4 {[%clk
0:03:30.1]} 29... f6 {[%clk 0:03:29.2]} 30. Rad1 {[%clk 0:03:27]} 30... Nd3
{[%clk 0:03:20.4]} 31. Rd2 {[%clk 0:03:20]} 31... Rfe8 {[%clk 0:03:17.9]} 32.
Nf2 {[%clk 0:03:13.9]} 32... Re5 {[%clk 0:03:11]} 33. Nxd3 {[%clk 0:03:08.4]}
33... cxd3 {[%clk 0:03:08.7]} 34. Rf3 {[%clk 0:03:07.9]} 34... Re2 {[%clk
0:03:05]} 35. Rdxd3 {[%clk 0:02:58.7]} 35... Rxd3 {[%clk 0:03:01.9]} 36. Rxd3
{[%clk 0:02:58.2]} 36... Rxb2 {[%clk 0:03:01.8]} 37. c4 {[%clk 0:02:54.4]} 37...
Rc2 {[%clk 0:02:59.5]} 38. Rxb3 {[%clk 0:02:52.8]} 38... Rxc4 {[%clk 0:02:58.6]}
39. Ra3 {[%clk 0:02:51.5]} 39... h5 {[%clk 0:02:55.3]} 40. Kg3 {[%clk
0:02:47.2]} 40... h4+ {[%clk 0:02:54.6]} 41. Kf3 {[%clk 0:02:46]} 41... Kh7
{[%clk 0:02:53.9]} 42. g4 {[%clk 0:02:39.5]} 42... hxg3 {[%clk 0:02:52.5]} 43.
Kxg3 {[%clk 0:02:38.3]} 43... Kh6 {[%clk 0:02:52.2]} 44. h4 {[%clk 0:02:35.6]}
44... Kh5 {[%clk 0:02:50.9]} 45. Kf3 {[%clk 0:02:31.6]} 45... Kxh4 {[%clk
0:02:49.4]} 46. Ke3 {[%clk 0:02:31.1]} 46... Kg5 {[%clk 0:02:48.2]} 47. Kd3
{[%clk 0:02:30.1]} 47... Rb4 {[%clk 0:02:47.1]} 48. Kc3 {[%clk 0:02:27.9]} 48...
Kxf5 {[%clk 0:02:45.3]} 49. Ra2 {[%clk 0:02:25.8]} 49... g5 {[%clk 0:02:44.2]}
50. Rf2+ {[%clk 0:02:24.5]} 50... Kg6 {[%clk 0:02:43.4]} 51. Ra2 {[%clk
0:02:21.3]} 51... g4 {[%clk 0:02:41.7]} 52. Kd3 {[%clk 0:02:19.4]} 52... f5
{[%clk 0:02:40.7]} 53. Ke3 {[%clk 0:02:18.5]} 53... Kg5 {[%clk 0:02:40.2]} 54.
Kf2 {[%clk 0:02:17.5]} 54... f4 {[%clk 0:02:39.3]} 55. Ra3 {[%clk 0:02:16]}
55... Kh4 {[%clk 0:02:38]} 56. Kg2 {[%clk 0:02:15]} 56... Rb2+ {[%clk
0:02:36.4]} 57. Kf1 {[%clk 0:02:13.5]} 57... f3 {[%clk 0:02:35.8]} 0-1

[Event "Live Chess"]
[Site "Chess.com"]
[Date "2024.06.02"]
[Round "-"]
[White "GwaryTek"]
[Black "defenderalist"]
[Result "0-1"]
[WhiteElo "1845"]
[BlackElo "1532"]
[TimeControl "300"]
[EndTime "3:34:43 PDT"]
[Termination "defenderalist won on time"]

1. d4 {[%clk 0:04:57.7]} 1... Nf6 {[%clk 0:04:58.5]} 2. c4 {[%clk 0:04:57.6]}
2... e6 {[%clk 0:04:58.1]} 3. Nc3 {[%clk 0:04:52.3]} 3... d5 {[%clk 0:04:58]} 4.
Nf3 {[%clk 0:04:50.9]} 4... c5 {[%clk 0:04:56.1]} 5. cxd5 {[%clk 0:04:49.4]}
5... Nxd5 {[%clk 0:04:52.2]} 6. g3 {[%clk 0:04:47.8]} 6... cxd4 {[%clk
0:04:50.5]} 7. Nxd4 {[%clk 0:04:46.1]} 7... Bb4 {[%clk 0:04:46.5]} 8. Bd2 {[%clk
0:04:42.4]} 8... a6 {[%clk 0:04:44.9]} 9. Bg2 {[%clk 0:04:34.3]} 9... Nxc3
{[%clk 0:04:43.5]} 10. bxc3 {[%clk 0:04:33.3]} 10... Be7 {[%clk 0:04:38.4]} 11.
O-O {[%clk 0:04:31.6]} 11... Qc7 {[%clk 0:04:31.6]} 12. Kh1 {[%clk 0:04:06.8]}
12... Bd7 {[%clk 0:03:55.5]} 13. Rb1 {[%clk 0:04:00.8]} 13... Nc6 {[%clk
0:03:31.4]} 14. Qb3 {[%clk 0:03:42.4]} 14... Rb8 {[%clk 0:03:22.9]} 15. Bf4
{[%clk 0:03:06.2]} 15... e5 {[%clk 0:03:19.2]} 16. Nxc6 {[%clk 0:03:03.6]} 16...
Bxc6 {[%clk 0:03:11.9]} 17. Be3 {[%clk 0:02:44.3]} 17... Bxg2+ {[%clk
0:03:08.2]} 18. Kxg2 {[%clk 0:02:44.2]} 18... O-O {[%clk 0:03:02.3]} 19. Kg1
{[%clk 0:02:26.4]} 19... h6 {[%clk 0:02:58.8]} 20. Bb6 {[%clk 0:02:25]} 20...
Qd7 {[%clk 0:02:47.3]} 21. Ba7 {[%clk 0:02:21.9]} 21... Rbc8 {[%clk 0:02:35.4]}
22. Qxb7 {[%clk 0:02:19.8]} 22... Rc7 {[%clk 0:02:29.3]} 23. Qxa6 {[%clk
0:01:54.4]} 23... Rxa7 {[%clk 0:02:27.7]} 24. Qb5 {[%clk 0:01:42.9]} 24... Qxb5
{[%clk 0:02:24.7]} 25. Rxb5 {[%clk 0:01:42.8]} 25... Rxa2 {[%clk 0:02:20.6]} 26.
Rxe5 {[%clk 0:01:39.1]} 26... Bf6 {[%clk 0:02:10.5]} 27. Re4 {[%clk 0:01:22.6]}
27... Bxc3 {[%clk 0:02:08.2]} 28. Kg2 {[%clk 0:01:22]} 28... Rfa8 {[%clk
0:02:02.3]} 29. Rc1 {[%clk 0:01:18.1]} 29... Bf6 {[%clk 0:01:59.4]} 30. Rc7
{[%clk 0:01:03.4]} 30... Kf8 {[%clk 0:01:39.8]} 31. h4 {[%clk 0:00:59.3]} 31...
Re8 {[%clk 0:01:37.5]} 32. Rxe8+ {[%clk 0:00:52.7]} 32... Kxe8 {[%clk
0:01:36.8]} 33. Kf3 {[%clk 0:00:45.2]} 33... Be7 {[%clk 0:01:28.4]} 34. Rb7
{[%clk 0:00:19.3]} 34... f6 {[%clk 0:01:24.2]} 35. h5 {[%clk 0:00:14.1]} 35...
Kf7 {[%clk 0:01:21.2]} 36. g4 {[%clk 0:00:09.9]} 36... Ke6 {[%clk 0:01:20.1]}
37. e3 {[%clk 0:00:05.6]} 37... Bd6 {[%clk 0:01:15.5]} 38. Rxg7 {[%clk
0:00:03.2]} 38... Bb4 {[%clk 0:01:04.3]} 39. Rb7 {[%clk 0:00:02]} 39... Be1
{[%clk 0:01:02.9]} 40. Rb6+ {[%clk 0:00:01.3]} 40... Kd5 {[%clk 0:00:56.9]} 0-1

[Event "Live Chess"]
[Site "Chess.com"]
[Date "2024.06.02"]
[Round "-"]
[White "Isambard_Thomas"]
[Black "oscalik"]
[Result "0-1"]
[WhiteElo "2179"]
[BlackElo "2245"]
[TimeControl "300"]
[EndTime "3:34:45 PDT"]
[Termination "oscalik won by resignation"]

1. d4 {[%clk 0:04:59.2]} 1... Nf6 {[%clk 0:04:58.9]} 2. Nf3 {[%clk 0:04:58.5]}
2... d5 {[%clk 0:04:57]} 3. Bg5 {[%clk 0:04:57.8]} 3... Ne4 {[%clk 0:04:55.4]}
4. h4 {[%clk 0:04:56.3]} 4... h6 {[%clk 0:04:54]} 5. Bf4 {[%clk 0:04:54.8]} 5...
Nd7 {[%clk 0:04:49.2]} 6. c3 {[%clk 0:04:53.8]} 6... Ndf6 {[%clk 0:04:48.3]} 7.
e3 {[%clk 0:04:52.8]} 7... e6 {[%clk 0:04:47.7]} 8. Bd3 {[%clk 0:04:50.3]} 8...
Bd6 {[%clk 0:04:47.2]} 9. Be5 {[%clk 0:04:48]} 9... c6 {[%clk 0:04:38]} 10. Qc2
{[%clk 0:04:46.5]} 10... Qc7 {[%clk 0:04:30.4]} 11. Bxd6 {[%clk 0:04:42.6]}
11... Nxd6 {[%clk 0:04:28.9]} 12. Ne5 {[%clk 0:04:40.3]} 12... b6 {[%clk
0:04:25.4]} 13. Bg6 {[%clk 0:04:34.8]} 13... fxg6 {[%clk 0:04:07.4]} 14. Qxg6+
{[%clk 0:04:24.4]} 14... Kf8 {[%clk 0:04:04.6]} 15. Rh3 {[%clk 0:04:10.5]} 15...
Nf7 {[%clk 0:04:00.4]} 16. Rf3 {[%clk 0:03:52.2]} 16... Nxe5 {[%clk 0:03:58]}
17. dxe5 {[%clk 0:03:44.7]} 17... Qxe5 {[%clk 0:03:57.9]} 18. Nd2 {[%clk
0:03:39.1]} 18... Ba6 {[%clk 0:03:55.1]} 19. O-O-O {[%clk 0:03:37]} 19... Rg8
{[%clk 0:03:48.1]} 20. Nb3 {[%clk 0:03:33.2]} 20... Be2 {[%clk 0:03:45.2]} 21.
Rg1 {[%clk 0:03:23.8]} 21... Bxf3 {[%clk 0:03:43.1]} 22. gxf3 {[%clk 0:03:22.8]}
22... Qf5 {[%clk 0:03:37.4]} 23. Qg3 {[%clk 0:03:17.6]} 23... e5 {[%clk
0:03:32.8]} 24. f4 {[%clk 0:03:01.5]} 24... Ne4 {[%clk 0:03:21.3]} 25. Qg2
{[%clk 0:02:53.4]} 25... Nc5 {[%clk 0:03:17.2]} 26. fxe5 {[%clk 0:02:40.3]}
26... Nxb3+ {[%clk 0:03:15.6]} 27. axb3 {[%clk 0:02:39.3]} 27... Ke7 {[%clk
0:03:11.6]} 28. f4 {[%clk 0:02:37.6]} 28... a5 {[%clk 0:03:04.1]} 29. c4 {[%clk
0:02:31.4]} 29... a4 {[%clk 0:03:02.9]} 30. cxd5 {[%clk 0:02:29.8]} 30... cxd5
{[%clk 0:03:01.9]} 31. Qxd5 {[%clk 0:02:28.3]} 31... Rac8+ {[%clk 0:03:00.6]}
32. Kd1 {[%clk 0:02:23.3]} 32... Rgd8 {[%clk 0:02:59.4]} 0-1

[Event "Live Chess"]
[Site "Chess.com"]
[Date "2024.06.02"]
[Round "-"]
[White "KeithArkell"]
[Black "Brooms1989"]
[Result "1-0"]
[WhiteElo "2404"]
[BlackElo "1238"]
[TimeControl "300"]
[EndTime "3:35:02 PDT"]
[Termination "KeithArkell won by resignation"]

1. d4 {[%clk 0:04:57.9]} 1... Nf6 {[%clk 0:04:58.6]} 2. Nf3 {[%clk 0:04:57.1]}
2... g6 {[%clk 0:04:56.3]} 3. c4 {[%clk 0:04:56.4]} 3... Bg7 {[%clk 0:04:55.3]}
4. g3 {[%clk 0:04:56]} 4... O-O {[%clk 0:04:53.9]} 5. Bg2 {[%clk 0:04:55.5]}
5... d6 {[%clk 0:04:53.3]} 6. O-O {[%clk 0:04:54.9]} 6... Nbd7 {[%clk
0:04:51.3]} 7. d5 {[%clk 0:04:54.3]} 7... e5 {[%clk 0:04:49.7]} 8. dxe6 {[%clk
0:04:53.8]} 8... fxe6 {[%clk 0:04:47.7]} 9. Nc3 {[%clk 0:04:53.6]} 9... e5
{[%clk 0:04:45.5]} 10. Bg5 {[%clk 0:04:51.4]} 10... h6 {[%clk 0:04:40.7]} 11.
Be3 {[%clk 0:04:50.4]} 11... c6 {[%clk 0:04:34.4]} 12. Qxd6 {[%clk 0:04:48.4]}
12... Re8 {[%clk 0:04:25.2]} 13. Nh4 {[%clk 0:04:46]} 13... Kh7 {[%clk
0:04:21.8]} 14. Qd3 {[%clk 0:04:43.5]} 14... e4 {[%clk 0:04:11]} 15. Nxe4 {[%clk
0:04:38.4]} 15... Nxe4 {[%clk 0:04:10.9]} 16. Bxe4 {[%clk 0:04:36.9]} 1-0

[Event "Live Chess"]
[Site "Chess.com"]
[Date "2024.06.02"]
[Round "-"]
[White "ogpin"]
[Black "ameetghasi100"]
[Result "0-1"]
[WhiteElo "2194"]
[BlackElo "2777"]
[TimeControl "300"]
[EndTime "3:35:09 PDT"]
[Termination "ameetghasi100 won by resignation"]

1. a4 {[%clk 0:04:58]} 1... g6 {[%clk 0:04:59.9]} 2. Ra3 {[%clk 0:04:57.8]} 2...
d6 {[%clk 0:04:59.8]} 3. h4 {[%clk 0:04:56.5]} 3... h6 {[%clk 0:04:58.2]} 4. d4
{[%clk 0:04:54]} 4... Nd7 {[%clk 0:04:57.1]} 5. h5 {[%clk 0:04:47.4]} 5... g5
{[%clk 0:04:55.9]} 6. e4 {[%clk 0:04:47]} 6... Bg7 {[%clk 0:04:54.4]} 7. Bc4
{[%clk 0:04:45.4]} 7... e6 {[%clk 0:04:52.8]} 8. Ne2 {[%clk 0:04:39.2]} 8... a6
{[%clk 0:04:52.2]} 9. f4 {[%clk 0:04:34.9]} 9... gxf4 {[%clk 0:04:46.2]} 10.
Bxf4 {[%clk 0:04:34.8]} 10... Ngf6 {[%clk 0:04:44.9]} 11. Rg3 {[%clk 0:04:30.8]}
11... Bf8 {[%clk 0:04:42.4]} 12. Nbc3 {[%clk 0:04:24.1]} 12... c6 {[%clk
0:04:30.2]} 13. d5 {[%clk 0:04:05.7]} 13... cxd5 {[%clk 0:04:28.4]} 14. exd5
{[%clk 0:03:35.6]} 14... e5 {[%clk 0:04:28.3]} 15. Be3 {[%clk 0:03:34.4]} 15...
Rg8 {[%clk 0:04:18.8]} 16. Rf1 {[%clk 0:03:22.5]} 16... Ng4 {[%clk 0:04:06]} 17.
Qd3 {[%clk 0:03:00.1]} 17... Qh4 {[%clk 0:03:58.3]} 18. Kd2 {[%clk 0:02:48.7]}
18... Qxh5 {[%clk 0:03:50.7]} 19. Ne4 {[%clk 0:02:30.4]} 19... Qg6 {[%clk
0:03:38.7]} 20. Rgf3 {[%clk 0:02:23.1]} 20... Nh2 {[%clk 0:03:30.8]} 21. Kc3
{[%clk 0:01:49.5]} 21... Nxf1 {[%clk 0:03:23.7]} 22. Rxf1 {[%clk 0:01:48.4]}
22... Qxg2 {[%clk 0:03:15.2]} 23. Rg1 {[%clk 0:01:44.9]} 23... Qxg1 {[%clk
0:03:13.9]} 24. Bxg1 {[%clk 0:01:39]} 24... Rxg1 {[%clk 0:03:13.8]} 25. Nxg1
{[%clk 0:01:37.9]} 25... Be7 {[%clk 0:03:05.2]} 26. Ng3 {[%clk 0:01:26.3]} 26...
Nc5 {[%clk 0:03:01.9]} 27. Qh7 {[%clk 0:01:25.3]} 27... Bd7 {[%clk 0:03:00.5]}
28. Nf5 {[%clk 0:01:18.1]} 28... Bf8 {[%clk 0:02:57.9]} 29. b3 {[%clk
0:01:10.7]} 29... Ne4+ {[%clk 0:02:52.4]} 30. Kb2 {[%clk 0:01:08.4]} 30... Ng5
{[%clk 0:02:51.5]} 31. Ng7+ {[%clk 0:01:04.5]} 31... Ke7 {[%clk 0:02:38.5]} 32.
Qxh6 {[%clk 0:01:03.5]} 32... f6 {[%clk 0:02:38.1]} 33. Qg6 {[%clk 0:00:58.8]}
33... Kd8 {[%clk 0:02:28.8]} 34. Nf5 {[%clk 0:00:57.6]} 34... Kc7 {[%clk
0:02:25.6]} 35. Ne3 {[%clk 0:00:51.9]} 35... Be7 {[%clk 0:02:19.6]} 36. Bd3
{[%clk 0:00:48]} 36... Rf8 {[%clk 0:02:11]} 37. Bf5 {[%clk 0:00:47]} 37... Be8
{[%clk 0:02:09.7]} 38. Qg7 {[%clk 0:00:43.4]} 38... Rf7 {[%clk 0:02:07.1]} 39.
Qg8 {[%clk 0:00:42.6]} 39... Rf8 {[%clk 0:02:05.6]} 40. Qg7 {[%clk 0:00:41.6]}
40... Rf7 {[%clk 0:02:05.1]} 41. Qh8 {[%clk 0:00:40.9]} 41... Rf8 {[%clk
0:02:04]} 42. Qh1 {[%clk 0:00:37.2]} 42... b5 {[%clk 0:02:01.8]} 43. Nf3 {[%clk
0:00:36.5]} 43... Nf7 {[%clk 0:01:59.5]} 44. axb5 {[%clk 0:00:35.6]} 44... axb5
{[%clk 0:01:59]} 45. Qa1 {[%clk 0:00:34.8]} 45... Nd8 {[%clk 0:01:52.1]} 46.
Qa5+ {[%clk 0:00:32.8]} 46... Kb8 {[%clk 0:01:51.6]} 47. Qb6+ {[%clk 0:00:28.7]}
47... Nb7 {[%clk 0:01:50.9]} 48. c4 {[%clk 0:00:22.8]} 48... Bd8 {[%clk
0:01:50.4]} 49. Qa6 {[%clk 0:00:22.3]} 49... Bc7 {[%clk 0:01:44.1]} 50. cxb5
{[%clk 0:00:20.6]} 50... Nc5 {[%clk 0:01:43.7]} 51. Qa4 {[%clk 0:00:19.7]} 51...
Nxa4+ {[%clk 0:01:42.2]} 52. bxa4 {[%clk 0:00:19.1]} 52... Bb6 {[%clk
0:01:41.9]} 53. Ng4 {[%clk 0:00:17.1]} 53... Bc5 {[%clk 0:01:41.8]} 54. Nf2
{[%clk 0:00:15.5]} 54... Bxf2 {[%clk 0:01:39.2]} 55. Nh4 {[%clk 0:00:13.9]}
55... Bc5 {[%clk 0:01:39.1]} 0-1

[Event "Live Chess"]
[Site "Chess.com"]
[Date "2024.06.02"]
[Round "-"]
[White "halfberg"]
[Black "MagnersCarlsberg2870"]
[Result "1-0"]
[WhiteElo "1888"]
[BlackElo "1798"]
[TimeControl "300"]
[EndTime "3:35:14 PDT"]
[Termination "halfberg won by resignation"]

1. e4 {[%clk 0:04:53.4]} 1... e5 {[%clk 0:04:58.2]} 2. Nf3 {[%clk 0:04:52.5]}
2... Nf6 {[%clk 0:04:57.1]} 3. Nxe5 {[%clk 0:04:50.5]} 3... Nc6 {[%clk
0:04:54.7]} 4. Nxc6 {[%clk 0:04:47.6]} 4... dxc6 {[%clk 0:04:50.9]} 5. d3 {[%clk
0:04:46.9]} 5... Bc5 {[%clk 0:04:49.5]} 6. Be2 {[%clk 0:04:45.3]} 6... h5 {[%clk
0:04:45.9]} 7. Be3 {[%clk 0:04:36.9]} 7... Bxe3 {[%clk 0:04:40.4]} 8. fxe3
{[%clk 0:04:35.8]} 8... Ng4 {[%clk 0:04:39.3]} 9. Qd2 {[%clk 0:04:30.6]} 9...
Qh4+ {[%clk 0:04:31.6]} 10. g3 {[%clk 0:04:27]} 10... Qg5 {[%clk 0:04:30]} 11.
Bxg4 {[%clk 0:04:24.3]} 11... Bxg4 {[%clk 0:04:19]} 12. Nc3 {[%clk 0:04:21.1]}
12... O-O-O {[%clk 0:04:15.5]} 13. Ne2 {[%clk 0:04:09.7]} 13... h4 {[%clk
0:04:13.4]} 14. O-O-O {[%clk 0:04:05.8]} 14... hxg3 {[%clk 0:04:11.9]} 15. hxg3
{[%clk 0:04:04.8]} 15... Bxe2 {[%clk 0:04:06.9]} 16. Qxe2 {[%clk 0:04:02.6]}
16... Qxg3 {[%clk 0:04:05.8]} 17. Rhg1 {[%clk 0:03:58.8]} 17... Qe5 {[%clk
0:04:01.6]} 18. d4 {[%clk 0:03:56.7]} 18... Qxe4 {[%clk 0:03:59.7]} 19. Rxg7
{[%clk 0:03:51.6]} 19... Rh1 {[%clk 0:03:57.4]} 20. Qg4+ {[%clk 0:03:36.4]}
20... Qxg4 {[%clk 0:03:55.3]} 21. Rxg4 {[%clk 0:03:35.3]} 21... Rxd1+ {[%clk
0:03:52.1]} 22. Kxd1 {[%clk 0:03:34.1]} 22... Re8 {[%clk 0:03:51.3]} 23. Kd2
{[%clk 0:03:32.3]} 23... Kd7 {[%clk 0:03:48.9]} 24. Kd3 {[%clk 0:03:26.8]} 24...
Re7 {[%clk 0:03:47.5]} 25. e4 {[%clk 0:03:22.6]} 25... Kd6 {[%clk 0:03:46.2]}
26. Rf4 {[%clk 0:03:17.4]} 26... b5 {[%clk 0:03:42.8]} 27. b3 {[%clk 0:03:14.5]}
27... a5 {[%clk 0:03:38.6]} 28. c4 {[%clk 0:03:08.2]} 28... f6 {[%clk
0:03:31.8]} 29. Rf5 {[%clk 0:03:04.4]} 29... bxc4+ {[%clk 0:03:26.3]} 30. bxc4
{[%clk 0:03:02.7]} 30... Re6 {[%clk 0:03:25.5]} 31. Rxa5 {[%clk 0:02:59.4]} 1-0

[Event "Live Chess"]
[Site "Chess.com"]
[Date "2024.06.02"]
[Round "-"]
[White "WilliamofOrange16th"]
[Black "Crowded_House"]
[Result "1-0"]
[WhiteElo "1994"]
[BlackElo "1647"]
[TimeControl "300"]
[EndTime "3:35:17 PDT"]
[Termination "WilliamofOrange16th won by resignation"]

1. e4 {[%clk 0:04:58.2]} 1... e6 {[%clk 0:04:59]} 2. f4 {[%clk 0:04:56.4]} 2...
d5 {[%clk 0:04:58.7]} 3. e5 {[%clk 0:04:56]} 3... c5 {[%clk 0:04:57.3]} 4. c3
{[%clk 0:04:55.7]} 4... Nc6 {[%clk 0:04:56.8]} 5. Nf3 {[%clk 0:04:55.3]} 5...
Qb6 {[%clk 0:04:56.3]} 6. Na3 {[%clk 0:04:54.6]} 6... Nge7 {[%clk 0:04:48.8]} 7.
Nc2 {[%clk 0:04:53.3]} 7... g6 {[%clk 0:04:42.8]} 8. d4 {[%clk 0:04:51.3]} 8...
cxd4 {[%clk 0:04:40.1]} 9. cxd4 {[%clk 0:04:51.2]} 9... Bg7 {[%clk 0:04:37.2]}
10. Bd3 {[%clk 0:04:49.6]} 10... Bd7 {[%clk 0:04:31.8]} 11. O-O {[%clk
0:04:48.3]} 11... Nb4 {[%clk 0:04:30.5]} 12. Nxb4 {[%clk 0:04:45]} 12... Qxb4
{[%clk 0:04:29.5]} 13. a3 {[%clk 0:04:42.9]} 13... Qb6 {[%clk 0:04:23.7]} 14. b4
{[%clk 0:04:40.4]} 14... O-O {[%clk 0:04:21.5]} 15. Kh1 {[%clk 0:04:38.6]} 15...
Bb5 {[%clk 0:04:20.1]} 16. Bc2 {[%clk 0:04:36.1]} 16... Rfc8 {[%clk 0:04:17.2]}
17. Rf2 {[%clk 0:04:34.6]} 17... Rc7 {[%clk 0:04:11.4]} 18. g4 {[%clk 0:04:11]}
18... Rac8 {[%clk 0:04:07.9]} 19. Be3 {[%clk 0:04:09.2]} 19... Rc3 {[%clk
0:04:04.2]} 20. Bc1 {[%clk 0:03:46.3]} 20... R8c6 {[%clk 0:03:51.3]} 21. Bb2
{[%clk 0:03:44.6]} 21... R3c4 {[%clk 0:03:39.9]} 22. Bb3 {[%clk 0:03:39.3]}
22... Qc7 {[%clk 0:03:30.7]} 23. Bxc4 {[%clk 0:03:38.2]} 23... Rxc4 {[%clk
0:03:28.3]} 24. a4 {[%clk 0:03:30.5]} 24... Bd7 {[%clk 0:03:25.1]} 25. b5 {[%clk
0:03:29.3]} 25... a6 {[%clk 0:03:17.7]} 26. bxa6 {[%clk 0:03:26.9]} 26... bxa6
{[%clk 0:03:15.7]} 27. Ne1 {[%clk 0:03:07]} 27... Qa5 {[%clk 0:03:05.2]} 28. Qd2
{[%clk 0:02:45.6]} 28... Qc7 {[%clk 0:02:49.4]} 29. a5 {[%clk 0:02:36.2]} 29...
Bb5 {[%clk 0:02:43.9]} 30. Nd3 {[%clk 0:02:32.4]} 30... Rc2 {[%clk 0:02:34.3]}
31. Qd1 {[%clk 0:02:30.9]} 31... Rxf2 {[%clk 0:02:27.2]} 32. Nxf2 {[%clk
0:02:29.2]} 32... Qc4 {[%clk 0:02:02.5]} 33. Rc1 {[%clk 0:02:16.5]} 33... Qb3
{[%clk 0:01:59]} 34. Qxb3 {[%clk 0:02:15.3]} 1-0